[Event "Early-Titled-Tuesday-Blitz-May-14-2024"]
[Site "Chess.com"]
[Date "2024.05.14"]
[Round "6"]
[White "luggevoila"]
[Black "jaskol95"]
[Result "1-0"]
[WhiteElo "2338"]
[BlackElo "2504"]
[TimeControl "180+1"]
[EndTime "9:08:39 PDT"]
[Termination "luggevoila won by checkmate"]

1. e4 {[%clk 0:03:00.9]} 1... c5 {[%clk 0:02:57.6]} 2. Nf3 {[%clk 0:03:01.1]}
2... e6 {[%clk 0:02:56.9]} 3. c3 {[%clk 0:03:00.8]} 3... Nf6 {[%clk 0:02:55.1]}
4. e5 {[%clk 0:03:00.5]} 4... Nd5 {[%clk 0:02:55.7]} 5. d4 {[%clk 0:03:01]} 5...
cxd4 {[%clk 0:02:56.6]} 6. cxd4 {[%clk 0:03:01.6]} 6... d6 {[%clk 0:02:57.3]} 7.
Bc4 {[%clk 0:03:01.9]} 7... Be7 {[%clk 0:02:51.6]} 8. O-O {[%clk 0:03:01.8]}
8... O-O {[%clk 0:02:51.5]} 9. Qe2 {[%clk 0:03:02]} 9... b6 {[%clk 0:02:50.3]}
10. Rd1 {[%clk 0:03:01.7]} 10... Bb7 {[%clk 0:02:48.8]} 11. Bxd5 {[%clk
0:03:00.6]} 11... exd5 {[%clk 0:02:49.7]} 12. Nc3 {[%clk 0:02:58.9]} 12... Nd7
{[%clk 0:02:48.9]} 13. Bf4 {[%clk 0:02:54.8]} 13... dxe5 {[%clk 0:02:49]} 14.
Nxe5 {[%clk 0:02:53.3]} 14... Nxe5 {[%clk 0:02:49.3]} 15. Bxe5 {[%clk
0:02:53.5]} 15... Rc8 {[%clk 0:02:44.1]} 16. Qf3 {[%clk 0:02:51.1]} 16... f6
{[%clk 0:02:39.2]} 17. Bf4 {[%clk 0:02:47.9]} 17... Bb4 {[%clk 0:02:39.3]} 18.
Rac1 {[%clk 0:02:42.3]} 18... Qd7 {[%clk 0:02:38.7]} 19. Ne2 {[%clk 0:02:37.8]}
19... Rfe8 {[%clk 0:02:16.9]} 20. a3 {[%clk 0:02:34.6]} 20... Bf8 {[%clk
0:02:15.4]} 21. Ng3 {[%clk 0:02:29]} 21... Rc4 {[%clk 0:02:10.1]} 22. b3 {[%clk
0:02:10.9]} 22... Rxc1 {[%clk 0:02:10.1]} 23. Bxc1 {[%clk 0:02:11.5]} 23... Qb5
{[%clk 0:02:08.7]} 24. h4 {[%clk 0:02:01.2]} 24... Qa5 {[%clk 0:01:54.3]} 25. b4
{[%clk 0:01:51.9]} 25... Qa4 {[%clk 0:01:54.5]} 26. Nf5 {[%clk 0:01:41.7]} 26...
a5 {[%clk 0:01:46.6]} 27. Qg4 {[%clk 0:01:23.8]} 27... Kh8 {[%clk 0:01:46.9]}
28. Bf4 {[%clk 0:00:58.2]} 28... Re4 {[%clk 0:01:38.6]} 29. Rc1 {[%clk
0:00:47.2]} 29... Qxa3 {[%clk 0:01:35.2]} 30. Rc7 {[%clk 0:00:32.3]} 30... g6
{[%clk 0:00:35.3]} 31. Rxb7 {[%clk 0:00:31.5]} 31... Qxb4 {[%clk 0:00:34.2]} 32.
Ng3 {[%clk 0:00:15.3]} 32... a4 {[%clk 0:00:18]} 33. Nxe4 {[%clk 0:00:14.5]}
33... dxe4 {[%clk 0:00:17.1]} 34. Qd7 {[%clk 0:00:13.4]} 34... Qe7 {[%clk
0:00:13.2]} 35. Qxe7 {[%clk 0:00:13.4]} 35... Bxe7 {[%clk 0:00:14.1]} 36. Rxe7
{[%clk 0:00:13.5]} 36... b5 {[%clk 0:00:15]} 37. Rb7 {[%clk 0:00:13.3]} 37... a3
{[%clk 0:00:15.3]} 38. Rxb5 {[%clk 0:00:13.6]} 38... Kg7 {[%clk 0:00:15.7]} 39.
Ra5 {[%clk 0:00:13.9]} 39... h5 {[%clk 0:00:15.8]} 40. Ra4 {[%clk 0:00:14.8]}
40... g5 {[%clk 0:00:16.2]} 41. hxg5 {[%clk 0:00:14.4]} 41... fxg5 {[%clk
0:00:16.9]} 42. Bxg5 {[%clk 0:00:15]} 42... Kg6 {[%clk 0:00:17.8]} 43. Be3
{[%clk 0:00:15.2]} 43... Kf5 {[%clk 0:00:18.7]} 44. Rxa3 {[%clk 0:00:15.4]}
44... Kg4 {[%clk 0:00:19.6]} 45. Ra5 {[%clk 0:00:14.6]} 45... h4 {[%clk
0:00:20.5]} 46. Rg5# {[%clk 0:00:14.4]} 1-0

[Event "Early-Titled-Tuesday-Blitz-May-14-2024"]
[Site "Chess.com"]
[Date "2024.05.14"]
[Round "6"]
[White "lefonghua"]
[Black "Bauman_Guy"]
[Result "0-1"]
[WhiteElo "2606"]
[BlackElo "2892"]
[TimeControl "180+1"]
[EndTime "9:08:40 PDT"]
[Termination "Bauman_Guy won by checkmate"]

1. d4 {[%clk 0:03:00.9]} 1... Nf6 {[%clk 0:02:59.5]} 2. c4 {[%clk 0:03:00.8]}
2... e6 {[%clk 0:02:59.5]} 3. Nc3 {[%clk 0:03:00.9]} 3... Bb4 {[%clk 0:03:00]}
4. f3 {[%clk 0:03:00.5]} 4... c5 {[%clk 0:02:59.7]} 5. a3 {[%clk 0:03:00.7]}
5... Ba5 {[%clk 0:02:58.6]} 6. d5 {[%clk 0:02:54.7]} 6... d6 {[%clk 0:02:55.8]}
7. e4 {[%clk 0:02:53]} 7... O-O {[%clk 0:02:53.4]} 8. Ne2 {[%clk 0:02:43.4]}
8... b5 {[%clk 0:02:52.9]} 9. Nf4 {[%clk 0:02:37.1]} 9... e5 {[%clk 0:02:41.6]}
10. Ne2 {[%clk 0:02:37.2]} 10... b4 {[%clk 0:02:40.7]} 11. axb4 {[%clk
0:02:30.6]} 11... cxb4 {[%clk 0:02:41.6]} 12. Na4 {[%clk 0:02:22.3]} 12... Bd7
{[%clk 0:02:40.4]} 13. Be3 {[%clk 0:02:13.9]} 13... Bxa4 {[%clk 0:02:34.6]} 14.
Rxa4 {[%clk 0:02:06.4]} 14... Bb6 {[%clk 0:02:35]} 15. Qd2 {[%clk 0:02:02]}
15... a5 {[%clk 0:02:33.8]} 16. Nc1 {[%clk 0:01:57.1]} 16... Nfd7 {[%clk
0:02:28.8]} 17. Nb3 {[%clk 0:01:54]} 17... Na6 {[%clk 0:02:25]} 18. Bd3 {[%clk
0:01:46.4]} 18... Bxe3 {[%clk 0:02:21.5]} 19. Qxe3 {[%clk 0:01:47.3]} 19... Nac5
{[%clk 0:02:22]} 20. Nxc5 {[%clk 0:01:47.3]} 20... Nxc5 {[%clk 0:02:22.9]} 21.
Ra1 {[%clk 0:01:46]} 21... a4 {[%clk 0:02:19.9]} 22. O-O {[%clk 0:01:44.8]}
22... Qb6 {[%clk 0:02:19.5]} 23. Bc2 {[%clk 0:01:38.2]} 23... Rfb8 {[%clk
0:02:19.2]} 24. f4 {[%clk 0:01:32.7]} 24... b3 {[%clk 0:02:14.5]} 25. Bd1 {[%clk
0:01:30.2]} 25... Nd3 {[%clk 0:02:02.9]} 26. Qxb6 {[%clk 0:01:30.1]} 26... Rxb6
{[%clk 0:02:03.8]} 27. fxe5 {[%clk 0:01:28.6]} 27... dxe5 {[%clk 0:01:59.7]} 28.
Be2 {[%clk 0:01:27]} 28... Nc5 {[%clk 0:01:59.5]} 29. Bf3 {[%clk 0:01:18.7]}
29... Kf8 {[%clk 0:01:58.9]} 30. Rfd1 {[%clk 0:01:16.4]} 30... Ke7 {[%clk
0:01:58.8]} 31. Kf2 {[%clk 0:01:14.1]} 31... Rb4 {[%clk 0:01:58.1]} 32. d6+
{[%clk 0:00:56.2]} 32... Kd8 {[%clk 0:01:57.2]} 33. Be2 {[%clk 0:00:54.6]} 33...
Kd7 {[%clk 0:01:08.9]} 34. Ke3 {[%clk 0:00:48.6]} 34... Kc6 {[%clk 0:01:05.9]}
35. Rd5 {[%clk 0:00:31.4]} 35... f6 {[%clk 0:01:05.6]} 36. g4 {[%clk 0:00:31.3]}
36... Rd8 {[%clk 0:00:55.2]} 37. Rad1 {[%clk 0:00:27.7]} 37... Ne6 {[%clk
0:00:54.3]} 38. c5 {[%clk 0:00:26]} 38... Nxc5 {[%clk 0:00:52.4]} 39. Bf3 {[%clk
0:00:19]} 39... Rc4 {[%clk 0:00:51.8]} 40. g5 {[%clk 0:00:15.1]} 40... Ne6
{[%clk 0:00:52.1]} 41. Ra5 {[%clk 0:00:12.9]} 41... Nd4 {[%clk 0:00:51.8]} 42.
Bg4 {[%clk 0:00:10.2]} 42... Rxd6 {[%clk 0:00:49.8]} 43. gxf6 {[%clk 0:00:10.2]}
43... Rxf6 {[%clk 0:00:46.5]} 44. Rxe5 {[%clk 0:00:08.8]} 44... Nc2+ {[%clk
0:00:46.9]} 45. Ke2 {[%clk 0:00:07.8]} 45... Kb6 {[%clk 0:00:36.9]} 46. Bd7
{[%clk 0:00:06.4]} 46... Nd4+ {[%clk 0:00:36.9]} 47. Ke3 {[%clk 0:00:05.6]}
47... Rf3+ {[%clk 0:00:35.6]} 48. Kd2 {[%clk 0:00:04.4]} 48... Rc2+ {[%clk
0:00:36.1]} 49. Ke1 {[%clk 0:00:04.9]} 49... Re2# {[%clk 0:00:37]} 0-1

[Event "Early-Titled-Tuesday-Blitz-May-14-2024"]
[Site "Chess.com"]
[Date "2024.05.14"]
[Round "6"]
[White "Lennis93"]
[Black "Denis_Makhnyov"]
[Result "0-1"]
[WhiteElo "2803"]
[BlackElo "2992"]
[TimeControl "180+1"]
[EndTime "9:08:42 PDT"]
[Termination "Denis_Makhnyov won on time"]

1. d4 {[%clk 0:02:39]} 1... Nf6 {[%clk 0:02:59.7]} 2. Nf3 {[%clk 0:02:38.2]}
2... e6 {[%clk 0:02:59.1]} 3. c4 {[%clk 0:02:38.8]} 3... d5 {[%clk 0:02:54.5]}
4. Nc3 {[%clk 0:02:38.2]} 4... Bb4 {[%clk 0:02:52.7]} 5. e3 {[%clk 0:02:37.4]}
5... O-O {[%clk 0:02:50.5]} 6. Bd3 {[%clk 0:02:33.6]} 6... dxc4 {[%clk
0:02:47.6]} 7. Bxc4 {[%clk 0:02:34.5]} 7... a6 {[%clk 0:02:48.1]} 8. a4 {[%clk
0:02:32.6]} 8... b6 {[%clk 0:02:47.4]} 9. O-O {[%clk 0:02:30]} 9... Bb7 {[%clk
0:02:47.8]} 10. Qe2 {[%clk 0:02:30.3]} 10... Nbd7 {[%clk 0:02:46.6]} 11. Rd1
{[%clk 0:02:28.9]} 11... Qe7 {[%clk 0:02:46]} 12. Bd2 {[%clk 0:02:21.1]} 12...
Rfd8 {[%clk 0:02:41]} 13. Rac1 {[%clk 0:01:09.8]} 13... h6 {[%clk 0:02:36.8]}
14. h3 {[%clk 0:01:08.6]} 14... c5 {[%clk 0:02:21.8]} 15. Be1 {[%clk 0:01:05.1]}
15... cxd4 {[%clk 0:02:16]} 16. exd4 {[%clk 0:00:56.1]} 16... Nh5 {[%clk
0:00:32.4]} 17. Bd2 {[%clk 0:00:46.5]} 17... Qf6 {[%clk 0:00:32]} 18. Ne5 {[%clk
0:00:42.9]} 18... Nf4 {[%clk 0:00:31.2]} 19. Bxf4 {[%clk 0:00:42]} 19... Qxf4
{[%clk 0:00:31.1]} 20. Nxf7 {[%clk 0:00:40.7]} 20... Re8 {[%clk 0:00:25]} 21.
Ne5 {[%clk 0:00:33.4]} 21... Nf6 {[%clk 0:00:18.4]} 22. Rc2 {[%clk 0:00:22.8]}
22... Qg5 {[%clk 0:00:17]} 23. f3 {[%clk 0:00:21.1]} 23... Rad8 {[%clk
0:00:13.7]} 24. Bxa6 {[%clk 0:00:16.3]} 24... Bxa6 {[%clk 0:00:08.8]} 25. Qxa6
{[%clk 0:00:17.2]} 25... Rxd4 {[%clk 0:00:07.6]} 26. Rxd4 {[%clk 0:00:16.2]}
26... Qe3+ {[%clk 0:00:07.8]} 27. Kf1 {[%clk 0:00:13.1]} 27... Qxd4 {[%clk
0:00:08.7]} 28. Qb5 {[%clk 0:00:06.7]} 28... Bc5 {[%clk 0:00:07.2]} 29. Ke1
{[%clk 0:00:05.4]} 29... Qxe5+ {[%clk 0:00:07.2]} 30. Re2 {[%clk 0:00:04.7]}
30... Qg3+ {[%clk 0:00:06.5]} 31. Kf1 {[%clk 0:00:02.3]} 31... Rf8 {[%clk
0:00:06.1]} 32. Ne4 {[%clk 0:00:02.2]} 32... Nxe4 {[%clk 0:00:05.5]} 0-1

[Event "Early-Titled-Tuesday-Blitz-May-14-2024"]
[Site "Chess.com"]
[Date "2024.05.14"]
[Round "6"]
[White "bescmelasti"]
[Black "laiciffOneslraCsungaM"]
[Result "1-0"]
[WhiteElo "2626"]
[BlackElo "2416"]
[TimeControl "180+1"]
[EndTime "9:08:42 PDT"]
[Termination "bescmelasti won by resignation"]

1. e4 {[%clk 0:03:00.9]} 1... e6 {[%clk 0:02:57.4]} 2. d4 {[%clk 0:02:59.8]}
2... d5 {[%clk 0:02:58.3]} 3. Nc3 {[%clk 0:03:00.5]} 3... Bb4 {[%clk 0:02:57.2]}
4. e5 {[%clk 0:03:00.9]} 4... c5 {[%clk 0:02:57.1]} 5. a3 {[%clk 0:03:01.8]}
5... Bxc3+ {[%clk 0:02:57.5]} 6. bxc3 {[%clk 0:03:02.7]} 6... Ne7 {[%clk
0:02:57.2]} 7. Qg4 {[%clk 0:03:03.1]} 7... Qc7 {[%clk 0:02:57.5]} 8. Qxg7 {[%clk
0:03:02.9]} 8... Rg8 {[%clk 0:02:58]} 9. Qxh7 {[%clk 0:03:03.4]} 9... cxd4
{[%clk 0:02:58.5]} 10. Rb1 {[%clk 0:03:03.9]} 10... Qxe5+ {[%clk 0:02:19.9]} 11.
Ne2 {[%clk 0:03:02.3]} 11... dxc3 {[%clk 0:02:20.5]} 12. Bf4 {[%clk 0:03:01.6]}
12... Qf6 {[%clk 0:01:58.1]} 13. h4 {[%clk 0:03:00.6]} 13... Nd7 {[%clk
0:01:55.9]} 14. Bg5 {[%clk 0:02:54.8]} 14... Qe5 {[%clk 0:01:55.4]} 15. f4
{[%clk 0:02:51]} 15... Qe4 {[%clk 0:01:42.6]} 16. Qxe4 {[%clk 0:02:48.5]} 16...
dxe4 {[%clk 0:01:42.2]} 17. h5 {[%clk 0:01:48]} 17... f6 {[%clk 0:01:25]} 18.
Bh4 {[%clk 0:01:47.4]} 18... Nd5 {[%clk 0:01:25.5]} 19. g3 {[%clk 0:01:28.8]}
19... b6 {[%clk 0:01:15.4]} 20. Nd4 {[%clk 0:01:27.8]} 20... Kf7 {[%clk
0:01:10.3]} 21. Bc4 {[%clk 0:01:22.8]} 21... Bb7 {[%clk 0:01:09.1]} 22. Ke2
{[%clk 0:01:08.2]} 22... Rac8 {[%clk 0:01:06.2]} 23. Ba2 {[%clk 0:01:05.1]}
23... Rh8 {[%clk 0:00:38.6]} 24. Bxd5 {[%clk 0:00:57.7]} 24... Bxd5 {[%clk
0:00:39.5]} 25. g4 {[%clk 0:00:58.6]} 25... Rc4 {[%clk 0:00:32.9]} 26. Ke3
{[%clk 0:00:57.8]} 26... Ra4 {[%clk 0:00:24.6]} 27. Ra1 {[%clk 0:00:46.2]} 27...
Nc5 {[%clk 0:00:22.6]} 28. Be1 {[%clk 0:00:44.4]} 28... Rc4 {[%clk 0:00:17.2]}
29. Rb1 {[%clk 0:00:39.4]} 29... Ra4 {[%clk 0:00:17.1]} 30. Ra1 {[%clk
0:00:34.5]} 30... Rc4 {[%clk 0:00:17.4]} 31. g5 {[%clk 0:00:31.2]} 31... e5
{[%clk 0:00:12.8]} 32. g6+ {[%clk 0:00:28.6]} 32... Kg7 {[%clk 0:00:12.8]} 33.
Nf5+ {[%clk 0:00:26]} 33... Kg8 {[%clk 0:00:12.1]} 34. fxe5 {[%clk 0:00:23.6]}
34... Be6 {[%clk 0:00:08.6]} 35. Nd6 {[%clk 0:00:17.2]} 35... Ra4 {[%clk
0:00:05.2]} 36. exf6 {[%clk 0:00:17.6]} 36... Bg4 {[%clk 0:00:04.3]} 37. f7+
{[%clk 0:00:15.2]} 37... Kg7 {[%clk 0:00:03]} 38. Bxc3+ {[%clk 0:00:15.7]} 1-0

[Event "Early-Titled-Tuesday-Blitz-May-14-2024"]
[Site "Chess.com"]
[Date "2024.05.14"]
[Round "6"]
[White "ansko1999"]
[Black "wild3000"]
[Result "0-1"]
[WhiteElo "2638"]
[BlackElo "2522"]
[TimeControl "180+1"]
[EndTime "9:08:44 PDT"]
[Termination "wild3000 won by checkmate"]

1. Nc3 {[%clk 0:02:43]} 1... d5 {[%clk 0:02:54.9]} 2. e4 {[%clk 0:02:42.3]} 2...
d4 {[%clk 0:02:53.3]} 3. Nce2 {[%clk 0:02:42.7]} 3... e5 {[%clk 0:02:53.7]} 4.
Ng3 {[%clk 0:02:42.9]} 4... c5 {[%clk 0:02:53.5]} 5. Bc4 {[%clk 0:02:41.6]} 5...
Nf6 {[%clk 0:02:48.7]} 6. a4 {[%clk 0:02:36.2]} 6... Be7 {[%clk 0:02:47.1]} 7.
d3 {[%clk 0:02:34.2]} 7... O-O {[%clk 0:02:46.7]} 8. Nf3 {[%clk 0:02:22.4]} 8...
Nc6 {[%clk 0:02:37.9]} 9. O-O {[%clk 0:02:20.8]} 9... Be6 {[%clk 0:02:15.8]} 10.
Bxe6 {[%clk 0:02:04.9]} 10... fxe6 {[%clk 0:02:16.7]} 11. Ng5 {[%clk 0:02:04.3]}
11... Qd7 {[%clk 0:02:14.8]} 12. Nh5 {[%clk 0:02:02.5]} 12... Nxh5 {[%clk
0:02:07.9]} 13. Qxh5 {[%clk 0:02:03.4]} 13... Bxg5 {[%clk 0:02:05.8]} 14. Bxg5
{[%clk 0:02:04.3]} 14... Nb4 {[%clk 0:02:03]} 15. Qe2 {[%clk 0:02:01.1]} 15...
Rac8 {[%clk 0:01:56.5]} 16. Bh4 {[%clk 0:01:36.1]} 16... Rf7 {[%clk 0:01:26.5]}
17. Bg3 {[%clk 0:01:35.1]} 17... Nc6 {[%clk 0:01:26.7]} 18. f4 {[%clk
0:01:33.4]} 18... exf4 {[%clk 0:01:25.9]} 19. Rxf4 {[%clk 0:01:32.9]} 19... Rcf8
{[%clk 0:01:23.7]} 20. Rxf7 {[%clk 0:01:31.1]} 20... Rxf7 {[%clk 0:01:18.3]} 21.
Qh5 {[%clk 0:01:07.7]} 21... b6 {[%clk 0:01:12.7]} 22. c3 {[%clk 0:00:50.1]}
22... dxc3 {[%clk 0:01:12.1]} 23. bxc3 {[%clk 0:00:49.8]} 23... Qxd3 {[%clk
0:01:05.4]} 24. Rd1 {[%clk 0:00:48.4]} 24... Qe3+ {[%clk 0:00:55]} 25. Kh1
{[%clk 0:00:47.9]} 25... Qxe4 {[%clk 0:00:55.6]} 26. h3 {[%clk 0:00:32.3]} 26...
h6 {[%clk 0:00:36.9]} 27. Kh2 {[%clk 0:00:28.6]} 27... Qxa4 {[%clk 0:00:19.6]}
28. Rd6 {[%clk 0:00:23.4]} 28... Qe4 {[%clk 0:00:18.4]} 29. Qd1 {[%clk
0:00:14.2]} 29... a5 {[%clk 0:00:16.4]} 30. c4 {[%clk 0:00:13.4]} 30... Kh7
{[%clk 0:00:14.1]} 31. Qa4 {[%clk 0:00:12.5]} 31... Nd4 {[%clk 0:00:14]} 32. Qe8
{[%clk 0:00:10.7]} 32... Qf5 {[%clk 0:00:12]} 33. Rd8 {[%clk 0:00:09.6]} 33...
Ne2 {[%clk 0:00:11.6]} 34. Qg8+ {[%clk 0:00:04.3]} 34... Kg6 {[%clk 0:00:11.6]}
35. Be1 {[%clk 0:00:02.1]} 35... Qf1 {[%clk 0:00:10.9]} 36. Qe8 {[%clk
0:00:00.8]} 36... Qg1# {[%clk 0:00:10.4]} 0-1

[Event "Early-Titled-Tuesday-Blitz-May-14-2024"]
[Site "Chess.com"]
[Date "2024.05.14"]
[Round "6"]
[White "tgpgoat"]
[Black "TitarovVasiliYouTube"]
[Result "0-1"]
[WhiteElo "2455"]
[BlackElo "2631"]
[TimeControl "180+1"]
[EndTime "9:08:44 PDT"]
[Termination "TitarovVasiliYouTube won by resignation"]

1. Na3 {[%clk 0:03:00.9]} 1... d5 {[%clk 0:02:59.2]} 2. c4 {[%clk 0:02:58.1]}
2... d4 {[%clk 0:02:58.7]} 3. Nc2 {[%clk 0:02:54.7]} 3... c5 {[%clk 0:02:58.9]}
4. Nf3 {[%clk 0:02:54.7]} 4... Nc6 {[%clk 0:02:58.2]} 5. b4 {[%clk 0:02:53.4]}
5... e5 {[%clk 0:02:53.6]} 6. d3 {[%clk 0:02:52.2]} 6... cxb4 {[%clk 0:02:50.9]}
7. a3 {[%clk 0:02:34.3]} 7... b3 {[%clk 0:02:48.5]} 8. Nb4 {[%clk 0:02:34.3]}
8... Nxb4 {[%clk 0:02:44.6]} 9. axb4 {[%clk 0:02:33.6]} 9... Bxb4+ {[%clk
0:02:45.5]} 10. Bd2 {[%clk 0:02:34]} 10... Qe7 {[%clk 0:02:16.8]} 11. Qxb3
{[%clk 0:02:31.3]} 11... Bxd2+ {[%clk 0:02:15.5]} 12. Nxd2 {[%clk 0:02:32.2]}
12... Nf6 {[%clk 0:02:12]} 13. g3 {[%clk 0:02:30.7]} 13... O-O {[%clk
0:02:11.5]} 14. Bg2 {[%clk 0:02:29.5]} 14... a6 {[%clk 0:01:56]} 15. O-O {[%clk
0:02:28.8]} 15... h5 {[%clk 0:01:25.6]} 16. Rfb1 {[%clk 0:02:25.1]} 16... h4
{[%clk 0:01:19.7]} 17. Ne4 {[%clk 0:02:25.7]} 17... h3 {[%clk 0:01:17.4]} 18.
Nxf6+ {[%clk 0:02:24.8]} 18... Qxf6 {[%clk 0:01:18.3]} 19. Bd5 {[%clk
0:02:24.3]} 19... Bg4 {[%clk 0:00:50.1]} 20. Ra2 {[%clk 0:02:18.7]} 20... Rab8
{[%clk 0:00:47.8]} 21. Qb6 {[%clk 0:02:16.9]} 21... Be6 {[%clk 0:00:45.6]} 22.
Bxe6 {[%clk 0:02:11.1]} 22... fxe6 {[%clk 0:00:46.5]} 23. f3 {[%clk 0:02:10.6]}
23... Kh7 {[%clk 0:00:37.1]} 24. Qb2 {[%clk 0:01:57.7]} 24... Qg5 {[%clk
0:00:35.5]} 25. Qc1 {[%clk 0:01:57.3]} 25... Qf6 {[%clk 0:00:33.1]} 26. Rab2
{[%clk 0:01:54.8]} 26... Rf7 {[%clk 0:00:30.7]} 27. Rb6 {[%clk 0:01:54]} 27...
e4 {[%clk 0:00:16.7]} 28. dxe4 {[%clk 0:01:34.6]} 28... d3 {[%clk 0:00:17.6]}
29. Qe3 {[%clk 0:01:29]} 29... dxe2 {[%clk 0:00:17]} 30. Kf2 {[%clk 0:01:29.5]}
30... Rbf8 {[%clk 0:00:12.6]} 31. f4 {[%clk 0:01:27.3]} 31... Rd8 {[%clk
0:00:11.4]} 32. Kxe2 {[%clk 0:01:17.6]} 32... Rfd7 {[%clk 0:00:09.8]} 33. R6b2
{[%clk 0:01:03.9]} 33... Rd4 {[%clk 0:00:08.7]} 34. Rxb7 {[%clk 0:00:51.1]}
34... Rd2+ {[%clk 0:00:06.3]} 35. Qxd2 {[%clk 0:00:23.9]} 35... Rxd2+ {[%clk
0:00:07.2]} 36. Kxd2 {[%clk 0:00:24.8]} 36... Qd4+ {[%clk 0:00:07.7]} 37. Ke2
{[%clk 0:00:25.7]} 37... Qxe4+ {[%clk 0:00:08.6]} 38. Kd2 {[%clk 0:00:23.1]}
38... Qg2+ {[%clk 0:00:08.5]} 39. Kd3 {[%clk 0:00:22.2]} 39... Qxh2 {[%clk
0:00:09.4]} 40. Ke4 {[%clk 0:00:19.6]} 40... Qg2+ {[%clk 0:00:07.8]} 41. Ke5
{[%clk 0:00:20]} 41... h2 {[%clk 0:00:08.6]} 42. Kxe6 {[%clk 0:00:17.9]} 42...
Qxb7 {[%clk 0:00:08.3]} 0-1

[Event "Early-Titled-Tuesday-Blitz-May-14-2024"]
[Site "Chess.com"]
[Date "2024.05.14"]
[Round "6"]
[White "slorovel"]
[Black "Viktoker"]
[Result "0-1"]
[WhiteElo "2550"]
[BlackElo "2354"]
[TimeControl "180+1"]
[EndTime "9:08:46 PDT"]
[Termination "Viktoker won by resignation"]

1. e4 {[%clk 0:03:00.9]} 1... e5 {[%clk 0:02:56.8]} 2. Nf3 {[%clk 0:03:00.7]}
2... Nc6 {[%clk 0:02:54.3]} 3. Bc4 {[%clk 0:03:01.1]} 3... Nf6 {[%clk
0:02:53.2]} 4. Qe2 {[%clk 0:03:01.4]} 4... Be7 {[%clk 0:02:47.9]} 5. O-O {[%clk
0:03:01.1]} 5... O-O {[%clk 0:02:47.8]} 6. c3 {[%clk 0:03:01.5]} 6... d6 {[%clk
0:02:45.7]} 7. d3 {[%clk 0:03:01.8]} 7... Na5 {[%clk 0:02:36.5]} 8. Bb5 {[%clk
0:03:01.7]} 8... a6 {[%clk 0:02:36]} 9. Ba4 {[%clk 0:03:02]} 9... b5 {[%clk
0:02:36.1]} 10. Bc2 {[%clk 0:03:02.6]} 10... c5 {[%clk 0:02:36.3]} 11. Nbd2
{[%clk 0:03:02]} 11... h6 {[%clk 0:02:31.1]} 12. Re1 {[%clk 0:03:02]} 12... Re8
{[%clk 0:02:30.9]} 13. Nf1 {[%clk 0:03:01.7]} 13... Bf8 {[%clk 0:02:31.1]} 14.
Ng3 {[%clk 0:03:00.8]} 14... g6 {[%clk 0:02:30.9]} 15. h3 {[%clk 0:03:00.4]}
15... Bg7 {[%clk 0:02:31.2]} 16. a4 {[%clk 0:03:00.4]} 16... Bd7 {[%clk
0:02:22.4]} 17. Bd2 {[%clk 0:02:54.9]} 17... Nc6 {[%clk 0:02:20.5]} 18. Be3
{[%clk 0:02:48.3]} 18... Qc7 {[%clk 0:02:13.8]} 19. Qd2 {[%clk 0:02:24.6]} 19...
Kh7 {[%clk 0:02:08]} 20. b4 {[%clk 0:02:24.1]} 20... cxb4 {[%clk 0:01:35.7]} 21.
cxb4 {[%clk 0:02:25]} 21... d5 {[%clk 0:01:20]} 22. Bc5 {[%clk 0:02:19.8]} 22...
dxe4 {[%clk 0:01:16.6]} 23. dxe4 {[%clk 0:02:19.6]} 23... Qb7 {[%clk 0:00:55.5]}
24. axb5 {[%clk 0:02:16.9]} 24... axb5 {[%clk 0:00:55.2]} 25. Bb3 {[%clk
0:02:16]} 25... Be6 {[%clk 0:00:50.7]} 26. Bxe6 {[%clk 0:02:10.7]} 26... Rxe6
{[%clk 0:00:51.6]} 27. Rxa8 {[%clk 0:02:05.3]} 27... Qxa8 {[%clk 0:00:52.5]} 28.
Qe2 {[%clk 0:02:01.5]} 28... Qa4 {[%clk 0:00:50.7]} 29. Rb1 {[%clk 0:01:59.5]}
29... Nd7 {[%clk 0:00:47.8]} 30. Qe3 {[%clk 0:01:27.4]} 30... Nxc5 {[%clk
0:00:44.9]} 31. bxc5 {[%clk 0:01:17.2]} 31... b4 {[%clk 0:00:42.1]} 32. h4
{[%clk 0:01:17.4]} 32... Nd4 {[%clk 0:00:37.5]} 33. h5 {[%clk 0:01:08.1]} 33...
Rc6 {[%clk 0:00:27.6]} 34. hxg6+ {[%clk 0:01:07.4]} 34... fxg6 {[%clk
0:00:28.5]} 35. Nxd4 {[%clk 0:00:51.7]} 35... exd4 {[%clk 0:00:29.4]} 36. Qc1
{[%clk 0:00:44.6]} 36... d3 {[%clk 0:00:27.4]} 37. Nf1 {[%clk 0:00:40.4]} 37...
Qc2 {[%clk 0:00:27]} 38. Ne3 {[%clk 0:00:33.5]} 38... Qxc1+ {[%clk 0:00:25.1]}
39. Rxc1 {[%clk 0:00:34.4]} 39... b3 {[%clk 0:00:22.8]} 40. Rb1 {[%clk
0:00:14.9]} 40... b2 {[%clk 0:00:21.4]} 41. Kf1 {[%clk 0:00:09.9]} 41... Rxc5
{[%clk 0:00:20.8]} 42. Ke1 {[%clk 0:00:03.1]} 42... Rc1+ {[%clk 0:00:21]} 0-1